bitfinex-derivatives/quotes_BTCF0:USTF0_20251230
["timestamp","ask_amount","ask_price","bid_price","bid_amount"]
[1767125100277,0.1646245,88235.0,88218.0,0.0113465]
[1767125100461,0.1646245,88235.0,88220.0,0.13918209]
[1767125100661,0.0113441,88238.0,88220.0,0.15052839]
[1767125101174,0.09644,88242.0,88226.0,0.0113455]
[1767125101175,0.1077836,88242.0,88226.0,0.0113455]
[1767125101367,0.05684,88247.0,88220.0,0.13918209]
[1767125101368,0.05684,88247.0,88227.0,0.05684]
[1767125101570,0.02518472,88246.0,88227.0,0.05684]
[1767125101880,0.05684,88247.0,88227.0,0.05684]
[1767125102178,0.011344,88239.0,88227.0,0.05684]
[1767125103471,0.0113436,88242.0,88227.0,0.05684]
[1767125103669,0.13918209,88240.0,88227.0,0.05684]
[1767125104269,0.0113436,88242.0,88227.0,0.05684]
[1767125107075,0.0113455,88227.0,88211.0,0.00017003]
[1767125107281,0.0113466,88219.0,88200.0,0.09644]
[1767125107471,0.0113462,88222.0,88203.0,0.0113485]
[1767125107671,0.011346,88223.0,88207.0,0.0113479]
[1767125107970,0.05684,88226.0,88208.0,0.05684]
[1767125108367,0.05701003,88226.0,88208.0,0.05701003]
[1767125109174,0.06835563,88226.0,88208.0,0.06835783]
[1767125109778,0.011346,88223.0,88208.0,0.05701003]
[1767125110173,0.0113463,88221.0,88208.0,0.05701003]
[1767125110783,0.0113459,88224.0,88208.0,0.05701003]
[1767125110974,0.05701003,88226.0,88208.0,0.06835783]
[1767125111173,0.0113457,88225.0,88208.0,0.01151783]
[1767125111375,0.0113457,88225.0,88209.0,0.05684]
[1767125114988,0.0113461,88223.0,88209.0,0.05684]
[1767125117285,0.0113461,88223.0,88208.0,0.00017003]
[1767125117286,0.0113461,88223.0,88210.0,0.05684]
[1767125118782,0.05701003,88226.0,88210.0,0.05684]
[1767125119083,0.05701003,88226.0,88197.0,0.0113493]
[1767125119084,0.02533773,88225.0,88197.0,0.0113493]
[1767125119286,0.0113463,88221.0,88196.0,0.05684]
[1767125119586,0.0113457,88225.0,88205.0,0.0113482]
[1767125119790,0.00017003,88226.0,88210.0,0.0113476]
[1767125119981,0.05684,88231.0,88212.0,0.0113473]
[1767125120181,0.0113456,88226.0,88212.0,0.09644]
[1767125120383,0.0113463,88221.0,88212.0,0.09644]
[1767125120690,0.0113466,88219.0,88212.0,0.09644]
[1767125121190,0.0113466,88219.0,88209.0,0.00017003]
[1767125121394,0.0113468,88217.0,88210.0,0.15328]
[1767125121989,0.0113464,88220.0,88210.0,0.15328]
[1767125123289,0.0113464,88220.0,88211.0,0.05684]
[1767125123489,0.0113464,88220.0,88212.0,0.09644]
[1767125123887,0.0113464,88220.0,88213.0,0.05684]
[1767125124395,0.0113464,88220.0,88214.0,0.05684]
[1767125125290,0.0113464,88220.0,88209.0,0.00017003]
[1767125125487,0.0113464,88220.0,88210.0,0.15328]
[1767125125688,0.0113464,88220.0,88211.0,0.09644]
[1767125126083,0.0113467,88218.0,88207.0,0.09644]
[1767125126390,0.0113467,88218.0,88208.0,0.05684]
[1767125128394,0.0113463,88221.0,88208.0,0.05684]
[1767125129387,0.0113463,88221.0,88209.0,0.05684]
[1767125130094,0.01151593,88224.0,88209.0,0.05684]
[1767125130689,3e-08,88224.0,88209.0,0.05684]
[1767125130890,0.011343,88246.0,88210.0,0.25229994]
[1767125131090,0.02532156,88245.0,88226.0,0.0113455]
[1767125131289,0.03666486,88244.0,88227.0,0.15328]
[1767125131491,0.0113433,88244.0,88227.0,0.15328]
[1767125131994,0.01151333,88244.0,88227.0,0.15345003]
[1767125132596,0.0113437,88241.0,88227.0,0.15345003]
[1767125133891,0.0113437,88241.0,88227.0,0.00017003]
[1767125134185,0.0113437,88241.0,88228.0,0.15332]
[1767125134602,0.00017003,88244.0,88229.0,0.05688]
[1767125134896,0.0113434,88243.0,88229.0,0.15332]
[1767125139202,0.00017003,88244.0,88229.0,0.15332]
[1767125140103,0.00017003,88244.0,88230.0,0.05684]
[1767125140303,0.00017003,88244.0,88231.0,0.09644]
[1767125141998,0.00017003,88244.0,88232.0,0.05684]
[1767125142198,0.00017003,88244.0,88232.0,0.15328]
[1767125142893,0.01151343,88244.0,88232.0,0.15328]
[1767125143895,0.0113439,88240.0,88232.0,0.15328]
[1767125144908,0.0113434,88243.0,88232.0,0.15328]
[1767125146202,0.0113445,88235.0,88227.0,0.00017003]
[1767125146404,0.00017003,88244.0,88228.0,0.15328]
[1767125147002,0.02544913,88243.0,88227.0,3e-08]
[1767125147305,0.0113445,88235.0,88225.0,0.05684]
[1767125148304,0.011344,88238.0,88225.0,0.05684]
[1767125150002,0.0113437,88241.0,88225.0,0.05684]
[1767125152599,0.01151333,88244.0,88225.0,0.0681856]
[1767125152806,0.0113428,88248.0,88229.0,0.0113452]
[1767125153007,0.0113428,88248.0,88229.0,0.1077852]
[1767125153904,0.00017003,88247.0,88229.0,0.1077852]
[1767125154607,0.011343,88246.0,88229.0,0.09644]
[1767125156706,0.09644,88250.0,88229.0,0.09644]
[1767125158202,0.011343,88246.0,88229.0,0.09644]
[1767125160815,0.0113427,88249.0,88229.0,0.1077851]
[1767125161207,0.011343,88247.0,88229.0,0.1077851]
[1767125162414,0.011343,88247.0,88229.0,0.0113451]
[1767125162717,0.011343,88247.0,88230.0,0.15328]
[1767125164112,0.09644,88250.0,88221.0,0.00017003]
[1767125164318,0.09644,88250.0,88223.0,0.0113459]
[1767125164519,0.0113431,88246.0,88222.0,0.15328]
[1767125164718,0.02538681,88245.0,88222.0,0.15328]
[1767125164920,0.02538681,88244.0,88222.0,0.15328]
[1767125165117,0.0113431,88246.0,88222.0,0.15328]
[1767125165620,0.0113434,88244.0,88226.0,0.0113455]
[1767125168831,0.1077826,88250.0,88233.0,0.0113446]
[1767125169021,0.1077826,88250.0,88234.0,0.05684]
[1767125171633,0.1077826,88250.0,88233.0,0.0113446]
[1767125171932,0.0113431,88246.0,88232.0,0.0964]
[1767125175029,0.0113427,88249.0,88232.0,0.1077447]
[1767125175931,0.09644,88250.0,88234.0,0.0113445]
[1767125176934,0.09644,88250.0,88236.0,0.0113442]
[1767125177137,0.4633083,88334.0,88240.0,0.13892668]
[1767125177138,0.0964,88268.0,88240.0,0.13892668]
[1767125177340,0.0964,88268.0,88232.0,0.0964]
[1767125177341,0.0964,88268.0,88250.0,0.13892668]
[1767125177531,0.0964,88268.0,88251.0,0.05684]
[1767125177843,0.0113411,88262.0,88251.0,0.05684]
[1767125178524,0.0112911,88262.0,88251.0,0.05684]
[1767125178725,0.0964,88268.0,88251.0,0.05684]
[1767125179732,0.13892668,88261.0,88248.0,0.15324]
[1767125179930,0.0964,88268.0,88248.0,0.15324]
[1767125180828,0.0113415,88258.0,88248.0,0.15324]
[1767125181227,0.0113415,88258.0,88245.0,0.00017003]
[1767125181428,0.0113415,88258.0,88246.0,0.15324]
[1767125182236,0.0964,88268.0,88226.0,0.0113455]
[1767125182237,0.13892668,88256.0,88226.0,0.0113455]
[1767125182428,0.0113427,88249.0,88228.0,0.0113453]
[1767125182732,0.0113427,88249.0,88230.0,0.13892668]
[1767125183332,0.00017003,88248.0,88231.0,0.00017003]
[1767125183531,0.0113455,88227.0,88207.0,0.0113479]
[1767125183735,0.0113465,88219.0,88208.0,0.0964]
[1767125183933,0.13892668,88220.0,88209.0,0.05684]
[1767125184535,0.0113465,88219.0,88206.0,0.00017003]
[1767125184732,0.0113469,88216.0,88206.0,0.00017003]
[1767125184930,0.0113469,88216.0,88203.0,0.05684]
[1767125185325,0.0113469,88216.0,88201.0,0.05684]
[1767125187842,0.13892668,88211.0,88200.0,0.00017003]
[1767125188039,0.0113477,88210.0,88198.0,0.05684]
[1767125188843,0.13892668,88211.0,88198.0,0.05684]
[1767125190841,0.13892668,88210.0,88198.0,0.05684]
[1767125192948,0.0113487,88202.0,88183.0,0.00011135]
[1767125193151,0.13892668,88200.0,88184.0,0.15328]
[1767125193346,0.13892668,88200.0,88183.0,6.135e-05]
[1767125193554,0.13892668,88200.0,88136.0,0.14155618]
[1767125193555,0.13892668,88193.0,88181.0,0.05688]
[1767125193748,0.19576668,88200.0,88181.0,0.05688]
[1767125193749,0.13892668,88191.0,88181.0,0.05688]
[1767125194454,0.00011031,88190.0,88181.0,0.05688]
[1767125194755,0.00011031,88190.0,88177.0,0.00017003]
[1767125195641,0.01146061,88190.0,88177.0,0.00017003]
[1767125195840,0.15027728,88187.0,88171.0,0.05688]
[1767125196042,0.13892668,88180.0,88171.0,0.05688]
[1767125196358,0.13892668,88181.0,88171.0,0.05688]
[1767125196546,0.13892668,88181.0,88164.0,0.0113535]
[1767125196745,0.13892668,88181.0,88151.0,0.30767073]
[1767125196746,0.13892668,88181.0,88165.0,0.15332]
[1767125196941,0.13892668,88175.0,88164.0,0.00011369]
[1767125197254,0.13892668,88175.0,88155.0,0.0113546]
[1767125197255,0.13892668,88174.0,88155.0,0.09644]
[1767125197456,0.13892668,88165.0,88156.0,0.05688]
[1767125197751,0.05688,88178.0,88156.0,0.05688]
[1767125197752,0.00011135,88164.0,88156.0,0.05688]
[1767125198347,0.13892668,88170.0,88156.0,0.05688]
[1767125199058,0.0113521,88176.0,88156.0,0.05688]
[1767125200056,0.05688,88178.0,88159.0,0.0113541]
[1767125201252,0.0682319,88178.0,88159.0,0.0113541]
[1767125205355,0.05688,88178.0,88159.0,0.0113541]
[1767125208860,0.0113519,88177.0,88159.0,0.0113541]
[1767125215863,0.0113519,88177.0,88161.0,0.0113539]
[1767125216957,0.13892668,88171.0,88161.0,0.0113539]
[1767125217761,0.05688,88170.0,88146.0,0.00010278]
[1767125217954,0.13892668,88156.0,88146.0,0.00010278]
[1767125218366,0.13909681,88160.0,88146.0,0.00010278]
[1767125220762,0.00017013,88160.0,88152.0,0.0113551]
[1767125220964,0.0113531,88168.0,88152.0,0.0113551]
[1767125221257,0.17860727,88167.0,88148.0,0.0113555]
[1767125221460,0.15336,88167.0,88148.0,0.0113555]
[1767125221868,0.00017013,88166.0,88149.0,0.00017013]
[1767125222258,0.02527995,88165.0,88149.0,0.00017013]
[1767125222459,0.00017013,88166.0,88150.0,0.0113553]
[1767125222658,0.02528092,88165.0,88150.0,0.0113553]
[1767125222858,0.00017013,88166.0,88150.0,0.0113553]
[1767125223070,0.02528026,88165.0,88150.0,0.0113553]
[1767125223268,0.02529576,88164.0,88150.0,0.0113553]
[1767125223573,0.02529435,88163.0,88150.0,0.0113553]
[1767125223869,0.00017013,88166.0,88150.0,0.0113553]
[1767125224070,0.02529435,88165.0,88150.0,0.0113553]
[1767125224373,0.08217435,88164.0,88153.0,0.0113549]
[1767125224668,0.05688,88164.0,88155.0,0.0113546]
[1767125224858,0.00017013,88166.0,88155.0,0.0113546]
[1767125225055,0.02530068,88165.0,88155.0,0.0113546]
[1767125225254,0.13892668,88180.0,88157.0,0.0113544]
[1767125225459,0.13892668,88180.0,88165.0,0.0113534]
[1767125225460,0.05688,88179.0,88165.0,0.0113534]
[1767125226057,0.05688,88179.0,88149.0,0.00017013]
[1767125226363,0.13892668,88170.0,88150.0,0.15336]
[1767125226560,0.05688,88169.0,88154.0,0.0113548]
[1767125231872,0.05688,88169.0,88156.0,0.0113545]
[1767125232070,0.05688,88169.0,88162.0,0.0113538]
[1767125232373,0.05688,88172.0,88162.0,0.0113538]
[1767125233772,3e-08,88173.0,88169.0,0.0113529]
[1767125233975,0.05688,88178.0,88169.0,0.0113529]
[1767125234273,0.06122465,88199.0,88170.0,0.15336]
[1767125234572,0.05688,88205.0,88175.0,0.0113522]
[1767125234770,0.0113485,88204.0,88185.0,0.0113508]
[1767125234963,0.00017013,88203.0,88186.0,0.00017013]
[1767125235478,0.0113487,88202.0,88186.0,0.00017013]
[1767125236866,0.00017013,88203.0,88186.0,0.00017013]
[1767125237066,0.00017013,88203.0,88187.0,0.0113506]
[1767125237376,0.02488311,88202.0,88187.0,0.0113506]
[1767125237565,0.02488311,88201.0,88187.0,0.0113506]
[1767125237876,0.02488311,88200.0,88186.0,0.00017013]
[1767125238074,0.01151883,88203.0,88186.0,0.00017013]
[1767125238270,0.02488308,88202.0,88186.0,0.00017013]
[1767125238575,0.01151883,88203.0,88186.0,0.00017013]
[1767125238775,0.02487553,88202.0,88186.0,0.00017013]
[1767125238977,0.01151883,88203.0,88186.0,0.00017013]
[1767125239173,0.02487553,88202.0,88186.0,0.00017013]
[1767125239373,0.01151883,88203.0,88186.0,0.00017013]
[1767125239977,0.00017013,88203.0,88186.0,0.00017013]
[1767125240680,0.00017013,88203.0,88192.0,0.0113499]
[1767125241386,0.00017013,88203.0,88189.0,0.0113503]
[1767125242379,0.00017013,88203.0,88192.0,0.0113499]
[1767125249979,0.00017013,88203.0,88189.0,0.0113503]
[1767125250180,0.00017013,88203.0,88186.0,0.01152083]
[1767125250488,0.00017013,88203.0,88186.0,0.00017013]
[1767125250893,0.011349,88200.0,88186.0,0.00017013]
[1767125258986,0.01151873,88203.0,88186.0,0.00017013]
[1767125261091,0.0113489,88201.0,88186.0,0.00017013]
[1767125262294,0.0113491,88199.0,88186.0,0.00017013]
[1767125262491,0.15336,88198.0,88160.0,0.08153271]
[1767125262690,0.0113512,88183.0,88165.0,0.0113533]
[1767125263490,0.00017013,88183.0,88167.0,0.0113531]
[1767125264593,0.00017013,88183.0,88165.0,0.00017013]
[1767125264594,0.0113516,88179.0,88165.0,0.00017013]
[1767125264802,0.0113516,88180.0,88165.0,0.00017013]
[1767125265895,0.01152133,88183.0,88165.0,0.00017013]
[1767125266588,0.01152133,88183.0,88166.0,0.0113533]
[1767125266790,0.00017013,88183.0,88166.0,0.0113533]
[1767125270798,0.00017013,88183.0,88165.0,0.00017013]
[1767125271294,0.00017013,88183.0,88168.0,0.0113529]
[1767125273595,0.0113513,88182.0,88165.0,0.01152353]
[1767125281812,0.00017013,88183.0,88165.0,0.00017013]
[1767125281813,0.0113522,88175.0,88165.0,0.00017013]
[1767125282014,0.0113518,88178.0,88165.0,0.00017013]
[1767125283209,0.00017013,88183.0,88165.0,0.00017013]
[1767125284306,0.00017013,88183.0,88165.0,0.01152343]
[1767125285609,0.00017013,88183.0,88165.0,3.43e-06]
[1767125285915,0.00017013,88183.0,88113.0,0.09648]
[1767125285916,0.13908444,88160.0,88113.0,0.09648]
[1767125286121,0.12156669,88159.0,88113.0,0.09648]
[1767125286414,0.17840669,88158.0,88124.0,0.0113586]
[1767125286603,0.02496669,88157.0,88125.0,0.09648]
[1767125286810,8.254e-05,88156.0,88137.0,0.011357]
[1767125287114,8.254e-05,88156.0,88138.0,0.09648]
[1767125287314,0.0113539,88162.0,88139.0,0.0113567]
[1767125287803,0.0113543,88159.0,88139.0,0.0113567]
[1767125288006,0.00017013,88158.0,88139.0,0.0113567]
[1767125288617,0.00017013,88158.0,88140.0,0.13919566]
[1767125289512,0.00017013,88158.0,88139.0,0.0113567]
[1767125289713,0.00017013,88158.0,88140.0,0.13919566]
[1767125290704,0.0113545,88157.0,88140.0,0.13919566]
[1767125293223,0.00017013,88158.0,88140.0,0.13919566]
[1767125294126,0.00017013,88158.0,88141.0,0.0113564]
[1767125294319,0.0113537,88163.0,88145.0,0.011356]
[1767125295418,0.01152383,88163.0,88145.0,0.011356]
[1767125296429,0.01152383,88163.0,88150.0,0.13919566]
[1767125296725,3.83e-06,88163.0,88148.0,0.05696]
[1767125296926,3.83e-06,88163.0,88150.0,0.13919566]
[1767125297529,0.15054716,88180.0,88160.0,0.011354]
[1767125297719,0.0113518,88178.0,88160.0,0.15054966]
[1767125298321,0.0113518,88178.0,88160.0,0.011354]
[1767125298523,0.0113521,88176.0,88159.0,0.15344]
[1767125298725,0.01152223,88176.0,88159.0,0.15361013]
[1767125299629,0.01152223,88176.0,88159.0,0.16496423]
[1767125306134,0.01152223,88176.0,88160.0,0.13919566]
[1767125306736,0.00017013,88176.0,88161.0,0.0113539]
[1767125306937,1.3e-07,88176.0,88161.0,0.0113539]
[1767125307336,1.3e-07,88176.0,88164.0,0.0113535]
[1767125313242,1.3e-07,88176.0,88170.0,0.0113527]
[1767125313441,0.0113509,88185.0,88170.0,0.0113527]
[1767125317146,0.0113512,88183.0,88167.0,0.0113531]
[1767125317445,0.0113515,88181.0,88164.0,0.0113535]
[1767125317644,0.011351,88184.0,88166.0,0.0113532]
[1767125322641,0.0113514,88182.0,88163.0,0.0113536]
[1767125322842,0.011352,88177.0,88160.0,0.13919566]
[1767125323147,0.011352,88177.0,88161.0,0.0113539]
[1767125323550,0.15054726,88180.0,88163.0,0.0113536]
[1767125323753,0.15054726,88180.0,88165.0,0.0113534]
[1767125323957,0.0113516,88180.0,88165.0,0.0113534]
[1767125325947,0.0113512,88183.0,88166.0,0.0113533]
[1767125326248,0.0113512,88183.0,88168.0,0.011353]
[1767125331853,0.00017013,88186.0,88172.0,0.0113524]
[1767125332153,0.05373935,88191.0,88176.0,0.13919566]
[1767125332351,0.48373683,88216.0,88170.0,0.30394836]
[1767125332352,0.0682691,88199.0,88182.0,0.0113512]
[1767125332645,0.0682691,88199.0,88171.0,0.0113527]
[1767125332646,0.02715571,88198.0,88180.0,0.13919566]
[1767125332848,0.02715571,88197.0,88187.0,0.0113506]
[1767125333048,0.05692,88199.0,88180.0,0.13919566]
[1767125333249,0.02726935,88198.0,88181.0,0.00017013]
[1767125333445,0.02714831,88197.0,88181.0,0.00017013]
[1767125333642,0.00011344,88198.0,88181.0,0.00017013]
[1767125333846,0.02714832,88197.0,88181.0,0.00017013]
[1767125334046,0.00011344,88198.0,88181.0,0.00017013]
[1767125334253,0.0113494,88197.0,88181.0,0.01152143]
[1767125335262,0.0113502,88191.0,88181.0,0.00017013]
[1767125335553,0.15054586,88191.0,88181.0,0.00017013]
[1767125335855,0.0113502,88191.0,88181.0,0.00017013]
[1767125336951,0.15054586,88191.0,88181.0,0.00017013]
[1767125340444,0.29259566,88191.0,88170.0,0.09648]
[1767125340647,0.011352,88177.0,88164.0,0.05692]
[1767125340950,0.0113537,88164.0,88147.0,0.0113557]
[1767125341251,0.15054986,88160.0,88146.0,0.05692]
[1767125341456,0.0113537,88163.0,88142.0,0.05692]
[1767125341750,0.05692,88164.0,88151.0,0.0113552]
[1767125341956,0.05692,88164.0,88154.0,0.0113548]
[1767125345354,0.05692,88164.0,88156.0,0.0113545]
[1767125345665,0.09648,88166.0,88150.0,0.13919566]
[1767125346165,0.05692,88173.0,88161.0,0.0113539]
[1767125346466,0.05692,88173.0,88160.0,0.13919566]
[1767125346758,0.05692,88181.0,88169.0,0.0113529]
[1767125354868,0.0113508,88186.0,88169.0,0.0113529]
[1767125355164,0.05692,88185.0,88169.0,0.0113529]
[1767125355465,0.05692,88184.0,88169.0,0.0113529]
[1767125359763,0.0682711,88184.0,88169.0,0.0113529]
[1767125361166,0.0682711,88184.0,88166.0,0.01152343]
[1767125361470,0.05692,88184.0,88168.0,0.011353]
[1767125363774,0.05692,88184.0,88170.0,0.0113527]
[1767125366676,0.0113512,88183.0,88167.0,0.0113531]
[1767125367577,0.05692,88182.0,88167.0,0.0113531]
[1767125367772,0.0113514,88181.0,88167.0,0.0113531]
[1767125368676,0.05692,88182.0,88167.0,0.0113531]
[1767125368978,0.05692,88182.0,88169.0,0.0113529]
[1767125369278,0.02711063,88181.0,88169.0,0.0113529]
[1767125369478,0.05692,88182.0,88169.0,0.0113529]
[1767125369677,0.02711061,88181.0,88169.0,0.0113529]
[1767125369868,0.05692,88182.0,88169.0,0.0113529]
[1767125370179,0.02711062,88181.0,88169.0,0.0113529]
[1767125370380,0.05692,88182.0,88169.0,0.0113529]
[1767125370581,0.02711115,88181.0,88169.0,0.0113529]
[1767125370777,0.05692,88182.0,88169.0,0.0113529]
[1767125371075,0.0271112,88181.0,88169.0,0.0113529]
[1767125371274,0.05692,88182.0,88169.0,0.0113529]
[1767125371577,0.02711221,88181.0,88169.0,0.0113529]
[1767125371769,0.05692,88182.0,88169.0,0.0113529]
[1767125371970,0.02711222,88181.0,88169.0,0.0113529]
[1767125372173,0.05692,88182.0,88169.0,0.0113529]
[1767125372367,0.02711662,88181.0,88169.0,0.0113529]
[1767125372580,0.05692,88182.0,88169.0,0.0113529]
[1767125372780,0.02711685,88181.0,88169.0,0.0113529]
[1767125372980,0.05692,88182.0,88169.0,0.0113529]
[1767125373180,0.02711684,88181.0,88169.0,0.0113529]
[1767125373375,0.02711684,88180.0,88169.0,0.0113529]
[1767125373580,0.05692,88182.0,88169.0,0.0113529]
[1767125373781,0.02712253,88181.0,88169.0,0.0113529]
[1767125373984,0.02712253,88180.0,88169.0,0.0113529]
[1767125374283,0.05692,88182.0,88169.0,0.0113529]
[1767125374478,0.02712837,88181.0,88169.0,0.0113529]
[1767125374680,0.02712837,88180.0,88169.0,0.0113529]
[1767125374872,0.05692,88182.0,88169.0,0.0113529]
[1767125375182,0.02712961,88181.0,88169.0,0.0113529]
[1767125375385,0.02712961,88180.0,88169.0,0.0113529]
[1767125375574,0.02712961,88179.0,88169.0,0.0113529]
[1767125375776,0.0682713,88182.0,88169.0,0.0113529]
[1767125376080,0.02714099,88181.0,88169.0,0.0113529]
[1767125376268,0.02714099,88180.0,88169.0,0.0113529]
[1767125376467,0.02714099,88179.0,88169.0,0.0113529]
[1767125376673,0.02714099,88178.0,88169.0,0.0113529]
[1767125376982,0.0682713,88182.0,88169.0,0.0113529]
[1767125377285,0.02715299,88181.0,88169.0,0.0113529]
[1767125377581,0.02715299,88180.0,88169.0,0.0113529]
[1767125377782,0.02715299,88179.0,88166.0,0.01152333]
[1767125377984,0.02715299,88178.0,88166.0,0.01152333]
[1767125378183,0.0682713,88182.0,88166.0,0.01152333]
[1767125378482,0.0113526,88172.0,88155.0,0.09648]
[1767125379285,0.05692,88175.0,88155.0,0.09648]
[1767125379474,0.02731674,88174.0,88156.0,0.00017013]
[1767125379674,0.02731674,88174.0,88156.0,0.01152463]
[1767125379675,0.0113527,88171.0,88156.0,0.01152463]
[1767125380074,0.01152253,88174.0,88158.0,0.0113543]
[1767125380376,0.02714687,88173.0,88158.0,0.0113543]
[1767125380575,0.01152253,88174.0,88158.0,0.0113543]
[1767125380784,0.02714069,88173.0,88158.0,0.0113543]
[1767125381087,0.01152253,88174.0,88158.0,0.0113543]
[1767125381271,0.02714069,88173.0,88158.0,0.0113543]
[1767125381474,0.01152253,88174.0,88158.0,0.0113543]
[1767125381675,0.02713648,88173.0,88158.0,0.0113543]
[1767125381984,0.01152253,88174.0,88158.0,0.0113543]
[1767125382180,0.02713752,88173.0,88158.0,0.0113543]
[1767125382383,0.01152253,88174.0,88158.0,0.0113543]
[1767125382575,0.0113526,88172.0,88158.0,0.0113543]
[1767125382774,0.0113526,88172.0,88156.0,0.00017013]
[1767125382975,0.0113529,88170.0,88156.0,0.00017013]
[1767125388791,0.05688,88179.0,88156.0,0.00017013]
[1767125388989,0.02714713,88178.0,88156.0,0.00017013]
[1767125389196,0.02714713,88177.0,88156.0,0.00017013]
[1767125389382,0.02714713,88176.0,88156.0,0.00017013]
[1767125389579,0.02714713,88175.0,88156.0,0.00017013]
[1767125389782,0.02714713,88174.0,88156.0,0.00017013]
[1767125389994,0.09648,88178.0,88156.0,0.00017013]
[1767125390191,0.02714621,88177.0,88156.0,0.00017013]
[1767125390390,0.02714621,88176.0,88156.0,0.00017013]
[1767125390590,0.02714621,88175.0,88156.0,0.00017013]
[1767125390792,0.0113526,88172.0,88157.0,0.0113544]
[1767125396700,0.09648,88178.0,88156.0,0.00017013]
[1767125396900,0.0271475,88177.0,88156.0,0.00017013]
[1767125397198,0.0271475,88176.0,88156.0,0.00017013]
[1767125397496,0.0113528,88171.0,88156.0,0.01152463]
[1767125397696,0.0113523,88174.0,88160.0,0.011354]
[1767125399499,0.0113526,88172.0,88156.0,0.01152463]
[1767125401899,0.0113526,88172.0,88158.0,0.0113543]
[1767125402100,0.06122465,88188.0,88160.0,0.011354]
[1767125402299,0.06122465,88188.0,88156.0,0.00017013]
[1767125402300,0.02709087,88186.0,88170.0,0.0113528]
[1767125402499,0.18045087,88185.0,88170.0,0.0113528]
[1767125402698,0.12357087,88184.0,88162.0,0.05688]
[1767125402899,0.011352,88177.0,88162.0,0.05688]
[1767125403103,0.09648,88184.0,88162.0,0.05688]
[1767125403299,0.02709209,88183.0,88157.0,0.05688]
[1767125403495,0.0113525,88173.0,88157.0,0.05688]
[1767125406595,0.0113525,88173.0,88157.0,0.0682344]
[1767125412706,0.011353,88169.0,88157.0,0.05688]
[1767125413005,0.011353,88169.0,88156.0,0.00017013]
[1767125413907,0.13915175,88180.0,88156.0,0.00017013]
[1767125413908,0.0113526,88172.0,88156.0,0.00017013]
[1767125414408,0.0113526,88172.0,88157.0,0.0113545]
[1767125418214,0.02712453,88171.0,88157.0,0.0113545]
[1767125418413,0.0113526,88172.0,88157.0,0.0113545]
[1767125428722,0.0113528,88170.0,88156.0,0.00017013]
[1767125431213,0.011353,88169.0,88156.0,0.00017013]
[1767125434023,0.13915175,88170.0,88156.0,0.00017013]
[1767125435620,0.011353,88169.0,88156.0,0.00017013]
[1767125435821,0.13915175,88170.0,88156.0,0.00017013]
[1767125436019,0.0113526,88172.0,88156.0,0.00017013]
[1767125438226,0.0113528,88170.0,88156.0,0.00017013]
[1767125438523,0.15050455,88170.0,88156.0,0.00017013]
[1767125439323,0.13915175,88170.0,88157.0,0.0113544]
[1767125441023,0.011353,88169.0,88156.0,0.00017013]
[1767125441328,0.13915175,88170.0,88156.0,0.00017013]
[1767125441530,0.0113526,88172.0,88156.0,0.00017013]
[1767125446628,0.0113526,88172.0,88157.0,0.0113544]
[1767125446825,0.15336,88175.0,88160.0,0.0113541]
[1767125447022,0.08397186,88174.0,88156.0,0.00017013]
[1767125447222,0.05688,88174.0,88160.0,0.13915175]
[1767125447537,0.05688,88174.0,88160.0,0.15050575]
[1767125447723,0.05688,88174.0,88162.0,0.0113537]
[1767125448330,0.05688,88174.0,88159.0,0.0113542]
[1767125450131,0.05688,88174.0,88160.0,0.13915175]
[1767125451530,0.05688,88174.0,88159.0,0.0113542]
[1767125451731,0.05688,88174.0,88160.0,0.13915175]
[1767125456134,0.05688,88174.0,88159.0,0.0113542]
[1767125457036,0.0682323,88174.0,88159.0,0.0113542]
[1767125458840,0.0113526,88172.0,88156.0,0.00017013]
[1767125459233,0.0113529,88170.0,88156.0,0.00017013]
[1767125460335,0.0113529,88170.0,88150.0,0.13915175]
[1767125460336,0.13915175,88170.0,88145.0,0.0448944]
[1767125460538,0.13915175,88170.0,88135.0,0.1018579]
[1767125460539,0.13915175,88155.0,88133.0,0.1018579]
[1767125460743,0.0113557,88148.0,88123.0,0.05688]
[1767125460932,0.0113557,88148.0,88131.0,0.0113578]
[1767125460933,0.15336,88147.0,88131.0,0.0113578]
[1767125461342,0.05487742,88172.0,88130.0,0.13932188]
[1767125461545,3e-08,88148.0,88144.0,0.011356]
[1767125461843,0.05688,88156.0,88144.0,0.011356]
[1767125462846,0.05688,88156.0,88141.0,0.00017013]
[1767125463436,0.05688,88156.0,88142.0,0.0113564]
[1767125463742,0.05688,88156.0,88141.0,1.3e-07]
[1767125465237,0.05688,88156.0,88142.0,0.0113564]
[1767125465433,0.05688,88156.0,88141.0,1.3e-07]
[1767125466346,0.05688,88156.0,88142.0,0.0113564]
[1767125468544,0.05688,88156.0,88145.0,0.011356]
[1767125468746,0.05454271,88167.0,88141.0,0.05688013]
[1767125468943,0.0113525,88173.0,88157.0,0.13915175]
[1767125469143,0.18158683,88172.0,88156.0,0.0113545]
[1767125469444,0.1534,88172.0,88156.0,0.0113545]
[1767125469650,0.02818659,88171.0,88156.0,0.0113545]
[1767125469851,0.1534,88172.0,88156.0,0.0113545]
[1767125470053,0.0281867,88171.0,88156.0,0.0113545]
[1767125470248,0.1534,88172.0,88156.0,0.0113545]
[1767125470549,0.02818686,88171.0,88155.0,0.00017013]
[1767125470746,0.0113533,88167.0,88155.0,1.3e-07]
[1767125471543,0.05688,88168.0,88155.0,1.3e-07]
[1767125473353,0.0113543,88159.0,88140.0,0.0113566]
[1767125473556,0.05688,88158.0,88140.0,0.0113566]
[1767125474352,0.05688,88158.0,88140.0,0.01152673]
[1767125476057,0.05688,88158.0,88142.0,0.0113563]
[1767125479056,0.05688,88158.0,88144.0,0.0113561]
[1767125480357,0.0113545,88157.0,88140.0,0.01152663]
[1767125480546,0.0113548,88155.0,88140.0,0.01152663]
[1767125483360,0.0113551,88153.0,88140.0,0.00017013]
[1767125483556,0.05688,88158.0,88132.0,0.1534]
[1767125483750,0.0113554,88151.0,88132.0,0.1078776]
[1767125484058,0.05688,88150.0,88135.0,0.0113572]
[1767125484752,0.0113559,88146.0,88118.0,0.09652]
[1767125484949,0.0113559,88146.0,88128.0,0.0113581]
[1767125485256,0.1078755,88149.0,88130.0,0.0113579]
[1767125485753,0.1078755,88149.0,88131.0,0.00017013]
[1767125489352,0.1078755,88149.0,88132.0,0.0113577]
[1767125490559,0.09652,88149.0,88134.0,0.0113574]
[1767125495866,0.09652,88149.0,88136.0,0.0113571]
[1767125498658,0.09652,88149.0,88132.0,0.0113576]
[1767125499262,0.09652,88149.0,88134.0,0.0113573]
[1767125500163,0.09652,88149.0,88131.0,0.00017013]
[1767125501266,0.09652,88149.0,88135.0,0.0113572]
[1767125510271,0.02886511,88148.0,88135.0,0.0113572]
[1767125510572,0.09652,88149.0,88135.0,0.0113572]